bitfinex-derivatives/quotes_SOLF0:USTF0_20251117
["timestamp","ask_amount","ask_price","bid_price","bid_amount"]
[1763386810673,6.45096386,139.76,139.71,3.09047262]
[1763386812492,6.45096386,139.76,139.71,0.05047262]
[1763386812891,6.45096386,139.76,139.71,3.09047262]
[1763386813882,6.39784348,139.75,139.71,0.05047262]
[1763386816099,6.39784348,139.73,139.71,0.05047262]
[1763386816281,6.39784348,139.74,139.71,0.05047262]
[1763386816485,82.69784348,139.75,139.71,0.05047262]
[1763386816891,6.39784348,139.74,139.71,0.05047262]
[1763386817086,76.3,139.75,139.71,0.05047262]
[1763386817087,82.69784348,139.75,139.71,0.05047262]
[1763386819790,6.39784348,139.75,139.71,0.05047262]
[1763386819990,6.45096386,139.76,139.71,3.14047262]
[1763386820188,0.05312038,139.76,139.71,3.14047262]
[1763386825690,6.51787581,139.76,139.71,0.05047262]
[1763386825989,6.51787581,139.76,139.71,3.14047262]
[1763386826394,0.05312038,139.76,139.71,3.14047262]
[1763386826594,6.51787581,139.76,139.71,0.05047262]
[1763386826798,6.46475543,139.75,139.71,0.05047262]
[1763386827101,6.46475543,139.75,139.71,3.14047262]
[1763386827496,0.05312038,139.76,139.71,3.14047262]
[1763386827497,6.51787581,139.76,139.71,3.14047262]
[1763386828201,6.46475543,139.75,139.71,3.14047262]
[1763386829394,6.51787581,139.76,139.71,3.14047262]
[1763386830296,6.46475543,139.75,139.71,3.14047262]
[1763386830497,6.51787581,139.76,139.71,3.14047262]
[1763386832904,0.05312038,139.76,139.71,3.14047262]
[1763386837307,6.51787581,139.76,139.71,3.14047262]
[1763386837502,6.51787581,139.76,139.71,0.05047262]
[1763386837808,6.46475543,139.74,139.71,0.05047262]
[1763386838106,6.46475543,139.74,139.65,3.31]
[1763386838107,9.47361653,139.72,139.65,3.31]
[1763386838509,3.0088611,139.69,139.6,3.31]
[1763386839017,6.46475543,139.7,139.6,3.31]
[1763386839018,3.0088611,139.66,139.6,3.31]
[1763386839209,3.0088611,139.66,139.62,0.04653503]
[1763386839210,0.05459714,139.64,139.62,0.04653503]
[1763386839906,0.05459714,139.64,139.62,3.35653503]
[1763386841007,76.28,139.69,139.62,3.35653503]
[1763386841205,76.28,139.69,139.62,3.31]
[1763386842012,0.05132456,139.67,139.64,3.36264849]
[1763386849711,0.05132456,139.67,139.64,0.05264849]
[1763386850215,0.05132456,139.67,139.64,3.36264849]
[1763386851414,76.28,139.7,139.64,3.36264849]
[1763386852413,0.05192545,139.68,139.64,3.36264849]
[1763386852810,0.00192545,139.68,139.64,3.36264849]
[1763386854823,82.74475543,139.76,139.64,9.81284849]
[1763386855024,76.28,139.76,139.65,3.31]
[1763386855622,76.28,139.76,139.67,3.31]
[1763386855816,0.05083737,139.73,139.7,3.35846471]
[1763386858627,0.05083737,139.73,139.7,0.04846471]
[1763386860925,0.05083737,139.73,139.64,3.24]
[1763386860926,8.44320865,139.73,139.64,3.24]
[1763386861226,29.90237128,139.73,139.64,3.24]
[1763386861820,6.46475543,139.74,139.64,3.24]
[1763386862021,0.04753965,139.7,139.69,3.24]
[1763386862227,0.0486266,139.71,139.69,3.24]
[1763386862530,0.05246739,139.71,139.69,0.05130044]
[1763386862730,0.05246739,139.71,139.69,3.29130044]
[1763386863135,1.49246739,139.71,139.61,3.24]
[1763386863319,104.21475543,139.7,139.61,3.24]
[1763386863825,29.90237128,139.69,139.61,3.24]
[1763386864023,29.90237128,139.69,139.52,6.68256659]
[1763386864024,36.36712671,139.69,139.53,3.24]
[1763386864234,0.05232179,139.62,139.6,3.28739515]
[1763386865533,6.46475543,139.71,139.61,3.24]
[1763386865728,76.24,139.71,139.61,3.24]
[1763386865929,6.46475543,139.75,139.61,3.24]
[1763386866236,60.68475543,139.75,139.61,3.24]
[1763386866532,0.0524294,139.69,139.68,3.24]
[1763386866827,0.05075049,139.7,139.68,3.24]
[1763386867133,0.04640893,139.7,139.68,3.28548929]
[1763386867934,6.46475543,139.77,139.68,3.28548929]
[1763386868135,76.24,139.78,139.68,3.28548929]
[1763386868136,82.70475543,139.78,139.68,3.24]
[1763386868828,76.24,139.78,139.72,0.04510266]
[1763386869035,0.04822763,139.74,139.72,3.28510266]
[1763386869329,0.04822763,139.74,139.72,0.04510266]
[1763386869925,0.04822763,139.74,139.72,3.28510266]
[1763386870130,0.04822763,139.74,139.72,0.04510266]
[1763386873540,6.51298306,139.74,139.66,3.24]
[1763386874040,5.01891745,139.72,139.66,3.24]
[1763386874335,0.04932918,139.7,139.68,0.04720554]
[1763386874640,0.04932918,139.7,139.68,3.28720554]
[1763386874838,0.04932918,139.7,139.68,0.04720554]
[1763386875543,5.01891745,139.69,139.62,3.24]
[1763386876438,0.05105402,139.67,139.64,0.04970505]
[1763386877233,5.01891745,139.66,139.64,0.04970505]
[1763386879141,0.05105402,139.67,139.64,0.04970505]
[1763386880249,0.05105402,139.67,139.64,3.09970505]
[1763386882540,0.05105402,139.67,139.64,0.04970505]
[1763386883250,6.51580945,139.67,139.58,3.05]
[1763386883548,6.46475543,139.67,139.58,3.05]
[1763386884051,0.04527747,139.64,139.61,0.04888011]
[1763386884250,0.04527747,139.64,139.62,3.05]
[1763386885151,0.04527747,139.64,139.61,3.09888011]
[1763386886852,6.46475543,139.71,139.62,1.44]
[1763386887155,11.48367288,139.72,139.61,3.05]
[1763386887358,8.46829596,139.74,139.56,6.68256659]
[1763386887359,6.46475543,139.74,139.64,3.32]
[1763386887549,5.01891745,139.75,139.64,3.32]
[1763386887550,11.48367288,139.75,139.64,3.32]
[1763386887945,0.04661334,139.71,139.68,3.36849568]
[1763386888750,6.46475543,139.77,139.68,3.36849568]
[1763386888945,6.46475543,139.78,139.68,3.32]
[1763386889855,0.05080012,139.74,139.72,0.05478215]
[1763386890058,0.0463705,139.74,139.72,0.0495268]
[1763386890359,6.51112593,139.74,139.72,0.0495268]
[1763386890657,0.0463705,139.74,139.72,0.0495268]
[1763386891256,0.0463705,139.74,139.72,3.3695268]
[1763386892155,0.0463705,139.74,139.72,0.0495268]
[1763386894460,0.0463705,139.74,139.72,3.3695268]
[1763386901162,0.0463705,139.74,139.72,0.0495268]
[1763386901464,0.0463705,139.74,139.72,3.3695268]
[1763386906976,6.46475543,139.79,139.72,3.3695268]
[1763386907272,1.16,139.86,139.75,3.32]
[1763386907459,1.16,139.85,139.75,3.32]
[1763386907663,1.16,139.82,139.65,6.68256659]
[1763386907963,1.16,139.82,139.61,75.06042215]
[1763386907964,1.16,139.79,139.72,3.32]
[1763386908166,0.0459741,139.77,139.72,3.36829209]
[1763386908468,0.0459741,139.77,139.74,3.32]
[1763386908670,0.047375,139.77,139.74,3.37050717]
[1763386909273,1.207375,139.77,139.74,0.05050717]
[1763386911274,0.047375,139.77,139.74,3.37050717]
[1763386912477,1.207375,139.77,139.74,0.05050717]
[1763386912872,3.08667349,139.75,139.74,0.05050717]
[1763386913173,1.16,139.75,139.74,0.05050717]
[1763386913481,1.16,139.74,139.68,3.32]
[1763386914369,0.04772173,139.72,139.7,0.04741868]
[1763386914571,0.04772173,139.72,139.7,3.36741868]
[1763386917476,1.18772173,139.72,139.7,0.04741868]
[1763386917878,0.04772173,139.72,139.7,0.04741868]
[1763386918080,0.04772173,139.72,139.7,3.07741868]
[1763386919782,1.18772173,139.72,139.7,0.04741868]
[1763386920676,1.18772173,139.72,139.7,3.07741868]
[1763386920677,0.04772173,139.72,139.7,3.07741868]
[1763386921578,0.04772173,139.72,139.5,107.48030776]
[1763386921579,68.63,139.7,139.52,6.66129554]
[1763386921880,74.38,139.71,139.5,2.03003734]
[1763386921881,26.52707042,139.59,139.5,2.03003734]
[1763386922084,8.46829596,139.63,139.37,1.24733418]
[1763386922085,26.52707042,139.53,139.37,1.24733418]
[1763386922377,26.52707042,139.53,139.34,8.77713384]
[1763386922378,5.01707042,139.56,139.39,5.01707042]
[1763386922585,0.05235032,139.49,139.46,0.05374124]
[1763386922886,0.04602759,139.49,139.46,0.05394523]
[1763386923382,0.04602759,139.49,139.46,1.49394523]
[1763386923682,0.04602759,139.49,139.46,0.05394523]
[1763386924076,21.52469326,139.57,139.48,3.03]
[1763386924273,5.01707042,139.59,139.48,3.03]
[1763386925075,0.04955751,139.55,139.52,3.07581917]
[1763386925271,21.55745976,139.55,139.44,3.03]
[1763386925475,21.51,139.55,139.44,3.03]
[1763386926584,0.05248267,139.51,139.48,0.05231177]
[1763386927773,0.05248267,139.51,139.48,3.08231177]
[1763386928477,0.05248267,139.51,139.48,0.05231177]
[1763386928983,0.05248267,139.51,139.39,3.03]
[1763386929190,21.51,139.52,139.39,3.03]
[1763386929386,5.01707042,139.53,139.39,3.03]
[1763386929785,5.01707042,139.5,139.39,3.03]
[1763386929988,5.01707042,139.5,139.45,0.05487935]
[1763386929989,0.05399972,139.47,139.45,0.05487935]
[1763386930290,5.07107014,139.47,139.39,3.03]
[1763386930988,0.05399972,139.47,139.39,3.03]
[1763386931182,0.05399972,139.47,139.42,0.04576062]
[1763386931379,0.05399972,139.47,139.42,3.07576062]
[1763386931981,81.22199193,139.56,139.43,3.03]
[1763386931982,72.8,139.56,139.43,3.03]
[1763386932987,0.04975513,139.51,139.48,0.05325058]
[1763386933182,0.04975513,139.51,139.43,3.03]
[1763386934288,0.04975513,139.51,139.46,0.05244939]
[1763386935392,0.04975513,139.51,139.43,3.03]
[1763386935984,0.04975513,139.51,139.39,3.03]
[1763386936186,21.51,139.49,139.39,3.03]
[1763386936493,0.04691358,139.45,139.3,8.42199193]
[1763386936785,21.51,139.49,139.31,3.03]
[1763386936786,0.04620563,139.39,139.31,3.03]
[1763386938581,21.51,139.47,139.35,3.14]
[1763386939788,0.05069892,139.42,139.4,0.05079491]
[1763386939989,0.04755973,139.42,139.35,3.14]
[1763386942598,0.04755973,139.42,139.3,3.14]
[1763386942784,0.04872778,139.37,139.3,3.14]
[1763386943092,0.04572716,139.35,139.3,3.14]
[1763386943396,0.04544405,139.34,139.3,3.14]
[1763386943598,0.04621014,139.33,139.3,3.14]
[1763386943804,0.04621014,139.33,139.24,3.14]
[1763386943989,0.04954087,139.3,139.24,3.14]
[1763386944188,21.51,139.4,139.24,3.14]
[1763386945300,0.04600703,139.33,139.32,3.14]
[1763386945598,0.04522486,139.34,139.32,3.14]
[1763386945802,0.0466142,139.34,139.32,0.04684188]
[1763386945992,0.0466142,139.34,139.32,3.18684188]
[1763386946191,24.94,139.41,139.32,3.18684188]
[1763386946390,24.94,139.41,139.32,3.14]
[1763386947299,0.04541344,139.38,139.35,0.05357664]
[1763386947601,0.04541344,139.38,139.32,3.14]
[1763386948586,0.04541344,139.38,139.35,3.07]
[1763386948792,21.51,139.47,139.35,3.07]
[1763386949195,37.04,139.5,139.35,3.07]
[1763386949196,8.42199193,139.52,139.36,3.07]
[1763386949391,73.22,139.54,139.36,3.07]
[1763386949594,21.51,139.53,139.36,3.07]
[1763386949894,0.04889298,139.46,139.43,3.12140959]
[1763386950195,0.04889298,139.46,139.43,0.05490384]
[1763386950196,0.05498631,139.46,139.43,0.05490384]
[1763386950899,0.05498631,139.46,139.4,3.07]
[1763386951799,104.99782646,141.33,139.43,3.07]
[1763386951800,29.66,139.58,139.43,3.07]
[1763386952104,21.51,139.57,139.43,3.07]
[1763386952399,21.51,139.58,139.43,3.07]
[1763386953306,0.04934393,139.52,139.49,3.12429368]
[1763386953500,0.04813475,139.52,139.49,3.11847864]
[1763386954304,0.04813475,139.52,139.45,3.07]
[1763386954500,21.51,139.55,139.38,3.07]
[1763386954699,8.42199193,139.56,139.38,3.07]
[1763386954900,29.93199193,139.56,139.38,3.07]
[1763386955096,8.42199193,139.6,139.38,3.07]
[1763386955300,63.3,139.58,139.4,3.07]
[1763386955504,0.04586024,139.5,139.47,0.04665195]
[1763386955805,0.0512833,139.5,139.47,3.1171456]
[1763386956711,0.0512833,139.5,139.47,0.0471456]
[1763386957003,0.0512833,139.5,139.33,3.07]
[1763386957200,29.93199193,139.52,139.33,3.07]
[1763386957911,0.05178294,139.44,139.33,3.07]
[1763386958204,29.93199193,139.52,139.33,3.07]
[1763386958205,0.04690886,139.4,139.33,3.07]
[1763386958407,29.93199193,139.52,139.33,3.07]
[1763386959003,8.42199193,139.48,139.33,3.07]
[1763386959310,21.51,139.47,139.33,3.07]
[1763386959509,0.04613916,139.41,139.39,0.04810535]
[1763386959715,0.04996224,139.41,139.39,0.04810535]
[1763386960602,0.04996224,139.41,139.35,3.07]
[1763386960797,0.04996224,139.41,139.29,3.07]
[1763386961006,21.51,139.47,139.29,3.07]
[1763386961708,0.04661944,139.39,139.29,3.07]
[1763386961910,0.04833555,139.35,139.29,3.07]
[1763386962109,21.51,139.47,139.29,3.07]
[1763386962904,21.51,139.47,139.3,3.07]
[1763386963101,21.51,139.47,139.31,3.07]
[1763386963318,0.05242766,139.4,139.37,3.1180927]
[1763386963508,0.04843661,139.4,139.37,3.1180927]
[1763386964716,0.04843661,139.4,139.37,0.0480927]
[1763386965014,0.04843661,139.4,139.37,3.1180927]
[1763386966209,0.04843661,139.4,139.37,0.0480927]
[1763386967918,0.04843661,139.4,139.37,3.1180927]
[1763386968217,0.04843661,139.4,139.37,0.0480927]
[1763386970409,0.04843661,139.4,139.37,3.1180927]
[1763386971106,0.04843661,139.4,139.37,0.0480927]
[1763386972215,0.04843661,139.4,139.37,3.1180927]
[1763386972721,0.04843661,139.4,139.37,0.0480927]
[1763386974022,0.04843661,139.4,139.37,3.1180927]
[1763386978823,6.39893834,139.46,139.37,3.1180927]
[1763386979023,6.39893834,139.47,139.37,3.07]
[1763386979220,6.39893834,139.48,139.37,3.07]
[1763386979625,6.39893834,139.49,139.37,3.07]
[1763386980016,0.04820678,139.44,139.42,3.08939908]
[1763386980331,21.51,139.51,139.42,3.09262016]
[1763386980332,6.39893834,139.51,139.42,3.09262016]
[1763386980522,21.12443587,139.56,139.42,3.04]
[1763386980523,6.39893834,139.52,139.42,3.04]
[1763386980819,6.39893834,139.51,139.42,3.04]
[1763386981125,6.39893834,139.49,139.42,3.04]
[1763386981330,0.05525591,139.47,139.44,0.0517931]
[1763386985016,0.05525591,139.47,139.44,3.0917931]
[1763386985424,0.05525591,139.47,139.44,0.0517931]
[1763386985627,0.05525591,139.47,139.44,3.0917931]
[1763386986423,6.39893834,139.54,139.44,3.0917931]
[1763386986626,6.39893834,139.55,139.44,3.04]
[1763386987432,6.39893834,139.57,139.44,3.04]
[1763386987930,0.05086415,139.52,139.5,3.04]
[1763386988131,0.05320747,139.52,139.5,3.09278057]
[1763386990033,0.05320747,139.52,139.5,0.05278057]
[1763386992435,0.05320747,139.52,139.37,3.04]
[1763386992637,27.93591504,139.54,139.37,3.04]
[1763386992930,5.03612313,139.52,139.38,3.04]
[1763386993131,11.46203817,139.52,139.38,3.04]
[1763386993325,0.04591255,139.46,139.44,3.09132613]
[1763386993519,0.05186909,139.46,139.44,3.09132613]
[1763386993722,0.05186909,139.46,139.44,0.05132613]
[1763386993929,0.05186909,139.46,139.37,3.04]
[1763386994233,5.03612313,139.46,139.37,3.04]
[1763386995034,5.03612313,139.46,139.4,0.04570162]
[1763386995035,0.04539201,139.43,139.4,0.04570162]
[1763386996142,5.08151514,139.43,139.33,3.04]
[1763386996435,5.03612313,139.43,139.33,3.04]
[1763386996624,11.46203817,139.43,139.33,3.04]
[1763386997229,0.0473993,139.39,139.38,3.04]
[1763386998335,5.03612313,139.47,139.39,3.04]
[1763386998336,6.42591504,139.47,139.39,3.04]
[1763386998540,6.42591504,139.48,139.39,3.04]
[1763386998840,6.42591504,139.49,139.39,3.04]
[1763386999245,0.05220271,139.45,139.43,0.05377023]
[1763386999426,0.05220271,139.45,139.43,3.09377023]
[1763387003549,0.05220271,139.45,139.43,0.05377023]
[1763387004045,0.05220271,139.45,139.37,3.04]
[1763387004046,7.86591504,139.44,139.37,3.04]
[1763387004247,6.42591504,139.44,139.37,3.04]
[1763387004448,6.42591504,139.43,139.33,3.04]
[1763387004956,6.42591504,139.43,139.37,0.04090697]
[1763387004957,0.0542836,139.39,139.37,0.04090697]
[1763387005254,0.0542836,139.39,139.3,3.04]
[1763387005456,5.03612313,139.39,139.3,3.04]
[1763387005755,6.42591504,139.38,139.3,3.04]
[1763387005943,27.93591504,139.38,139.27,3.04]
[1763387006353,0.05022988,139.34,139.27,3.04]
[1763387007844,0.05022988,139.34,139.28,3.23]
[1763387008847,0.05022988,139.34,139.28,9.6967]
[1763387009043,0.05022988,139.34,139.29,3.23]
[1763387009445,4.82371166,139.43,139.3,3.23]
[1763387009651,16.28574983,139.44,139.3,3.23]
[1763387009848,11.2496267,139.44,139.31,3.23]
[1763387010047,6.42591504,139.45,139.33,3.23]
[1763387010359,0.05306314,139.4,139.38,3.27554472]
[1763387010550,0.0533867,139.4,139.38,3.27554472]
[1763387011059,21.51,139.48,139.38,3.27554472]
[1763387011060,4.82371166,139.47,139.38,3.27554472]
[1763387011254,11.2496267,139.49,139.38,3.23]
[1763387011755,4.82491617,139.49,139.39,3.23]
[1763387012265,6.42591504,139.53,139.44,3.23]
[1763387012559,11.25130407,139.54,139.44,3.23]
[1763387012755,6.42591504,139.54,139.44,3.23]
[1763387013362,0.05285741,139.5,139.48,0.05047511]
[1763387013559,0.05285741,139.5,139.33,3.23]
[1763387013764,32.76130407,139.52,139.37,3.23]
[1763387013964,4.82538903,139.51,139.37,3.23]
[1763387014165,4.82538903,139.51,139.4,3.23]
[1763387014364,4.82538903,139.52,139.4,3.23]
[1763387014563,11.25130407,139.53,139.4,3.23]
[1763387014757,0.04561569,139.47,139.46,3.23]
[1763387015066,0.04621223,139.48,139.46,3.23]
[1763387015267,0.05328973,139.48,139.46,3.27897976]
[1763387015760,0.05328973,139.48,139.46,0.04897976]
[1763387016061,0.05328973,139.48,139.35,5.03612313]
[1763387016062,0.05328973,139.48,139.39,3.23]
[1763387016260,6.42591504,139.5,139.39,3.23]
[1763387016454,5.03612313,139.48,139.39,3.23]
[1763387016656,11.46203817,139.48,139.39,3.23]
[1763387016859,0.05312839,139.45,139.42,0.04807346]
[1763387017563,0.05312839,139.45,139.42,3.27807346]
[1763387024068,0.05312839,139.45,139.42,0.04807346]
[1763387024268,0.05312839,139.45,139.42,3.27807346]
[1763387028974,4.82538903,139.49,139.42,3.27807346]
[1763387029275,4.82538903,139.51,139.42,3.27807346]
[1763387029463,4.82538903,139.51,139.42,3.23]
[1763387030162,0.05461776,139.48,139.46,3.23]
[1763387030366,0.05461776,139.48,139.45,3.28489867]
[1763387035963,0.05461776,139.48,139.45,0.05489867]
[1763387037971,0.05461776,139.48,139.45,3.38489867]
[1763387049779,0.05461776,139.48,139.45,0.05489867]
[1763387050986,0.05461776,139.48,139.45,3.38489867]
[1763387051977,0.05461776,139.48,139.45,0.05489867]
[1763387052187,6.43517986,139.47,139.45,0.05489867]
[1763387052387,6.43517986,139.47,139.38,3.33]
[1763387052681,6.43517986,139.43,139.31,3.33]
[1763387052878,5.03612313,139.44,139.31,3.33]
[1763387052879,6.43517986,139.42,139.31,3.33]
[1763387053085,6.43517986,139.41,139.31,3.33]
[1763387053275,6.43517986,139.4,139.31,3.33]
[1763387053476,0.0489803,139.37,139.35,0.05079237]
[1763387053684,6.43517986,139.36,139.28,3.33]
[1763387054073,13.29368499,139.38,139.28,3.33]
[1763387054074,6.43517986,139.35,139.28,3.33]
[1763387054272,6.43517986,139.36,139.28,3.33]
[1763387054890,0.05041223,139.33,139.28,3.33]
[1763387055182,0.05041223,139.33,139.22,3.33]
[1763387055389,0.04647523,139.29,139.22,3.33]
[1763387056887,4.82538903,139.36,139.22,3.33]
[1763387056888,4.82538903,139.36,139.25,3.33]
[1763387057087,11.26056889,139.38,139.25,3.33]
[1763387057274,4.82538903,139.38,139.27,3.11]
[1763387057883,0.05371463,139.34,139.31,3.16105701]
[1763387058086,0.05325766,139.34,139.31,0.05338121]
[1763387059879,0.05325766,139.34,139.31,3.16338121]
[1763387060289,0.05325766,139.34,139.31,0.05338121]
[1763387061679,0.05325766,139.34,139.31,3.16338121]
[1763387063675,0.05325766,139.34,139.31,0.05338121]
[1763387064289,29.97770984,139.33,139.24,3.11]
[1763387064485,29.97770984,139.33,139.21,2.03003734]
[1763387064685,21.55,139.28,139.21,2.03003734]
[1763387065180,21.55,139.31,139.22,3.11]
[1763387065384,0.05152264,139.28,139.22,3.11]
[1763387065686,0.05152264,139.28,139.21,2.03003734]
[1763387065893,21.60152264,139.28,139.21,2.03003734]
[1763387066284,0.05152264,139.28,139.22,3.11]
[1763387068693,0.05152264,139.28,139.23,3.23]
[1763387069386,0.05152264,139.28,139.25,3.23]
[1763387069587,76.01,139.35,139.25,3.23]
[1763387069786,54.46,139.35,139.25,3.23]
[1763387070495,0.0537729,139.31,139.3,3.23]
[1763387070790,0.04934619,139.32,139.3,3.23]
[1763387071581,0.04934619,139.32,139.29,0.05113469]
[1763387071787,0.04934619,139.32,139.29,3.28113469]
[1763387073287,6.43517986,139.42,139.29,3.28113469]
[1763387073288,8.42770984,139.43,139.31,3.23]
[1763387073589,8.42770984,139.43,139.32,3.23]
[1763387073786,14.8628897,139.43,139.26,3.23]
[1763387073986,8.42770984,139.39,139.26,3.23]
[1763387074191,0.04671807,139.34,139.31,0.05098937]
[1763387074791,0.04671807,139.34,139.21,2.03003734]
[1763387074988,8.46829596,139.43,139.21,2.03003734]
[1763387074989,21.55,139.31,139.21,5.26003734]
[1763387075690,21.55,139.31,139.22,3.23]
[1763387075903,0.0513509,139.28,139.25,0.04543753]
[1763387076585,0.0513509,139.28,139.25,3.27543753]
[1763387077994,0.0513509,139.28,139.25,0.04543753]
[1763387078297,0.0513509,139.28,139.25,3.27543753]
[1763387078985,0.0513509,139.28,139.25,0.04543753]
[1763387079400,8.47906074,139.28,139.25,0.04543753]
[1763387079595,0.0513509,139.28,139.25,0.04543753]
[1763387079798,0.0513509,139.28,139.25,3.27543753]
[1763387084993,0.0513509,139.28,139.21,2.03003734]
[1763387085899,21.6013509,139.28,139.21,2.03003734]
[1763387086393,0.0513509,139.28,139.21,2.03003734]
[1763387087801,21.55,139.27,139.21,2.03003734]
[1763387087996,8.42770984,139.26,139.21,2.03003734]
[1763387088202,0.05165455,139.25,139.21,2.03003734]
[1763387090501,0.05165455,139.25,139.22,3.23]
[1763387091805,0.05165455,139.25,139.21,2.03003734]
[1763387093412,0.05165455,139.25,139.21,5.26003734]
[1763387094014,0.05165455,139.25,139.21,2.03003734]
[1763387095704,47.31,139.21,138.91,13.32980996]
[1763387095917,8.46829596,138.97,138.84,3.23]
[1763387096108,0.05523003,138.92,138.84,3.23]
[1763387096408,8.42770984,139.03,138.84,3.23]
[1763387096622,3.06517986,138.95,138.85,3.23]
[1763387096816,12.70244394,139.08,138.85,3.23]
[1763387097014,8.42770984,139.04,138.85,3.23]
[1763387097213,0.04771252,138.96,138.93,3.2802277]
[1763387097513,26.57321799,139.05,138.93,3.23]
[1763387097712,5.02321799,139.04,138.94,3.24]
[1763387097908,8.42770984,139.1,138.94,3.24]
[1763387097909,21.55,139.06,138.94,3.24]
[1763387098112,5.02321799,139.05,138.94,3.24]
[1763387098312,0.05339829,139.01,138.98,0.05143311]
[1763387098506,12.70244394,139.13,138.99,3.24]
[1763387098710,21.55,139.12,138.99,65.24]
[1763387098918,21.55,139.1,138.99,65.24]
[1763387099116,4.95763964,139.09,138.99,65.24]
[1763387099532,0.05073214,139.05,139.03,0.05319953]
[1763387103215,0.05073214,139.05,139.03,3.29319953]
[1763387103423,4.94017841,139.15,139.05,3.24]
[1763387103625,4.94017841,139.17,139.05,3.24]
[1763387103820,12.70244394,139.18,139.05,3.24]
[1763387104023,17.64262235,139.19,139.05,3.24]
[1763387104216,4.94017841,139.18,139.05,3.24]
[1763387104421,4.94017841,139.19,139.11,3.24]
[1763387104720,4.94017841,139.2,139.11,3.24]
[1763387104923,26.49017841,139.2,139.11,3.24]
[1763387105115,26.49017841,139.19,139.06,3.24]
[1763387105313,21.55,139.19,139.06,3.24]
[1763387105515,0.04871008,139.14,139.12,3.24]
[1763387105712,21.55,139.22,139.12,3.29065815]
[1763387105927,12.70244394,139.22,139.12,3.24]
[1763387106328,12.70244394,139.23,139.12,3.24]
[1763387106626,0.04898135,139.19,139.16,0.0550239]
[1763387108320,0.04898135,139.19,139.16,3.2950239]
[1763387108525,0.04898135,139.19,139.16,0.0550239]
[1763387108829,5.54543511,139.18,139.16,0.0550239]
[1763387109023,0.04898135,139.19,139.16,3.2950239]
[1763387109328,12.70244394,139.26,139.17,3.24]
[1763387109729,17.64160607,139.27,139.17,3.24]
[1763387110226,0.04928759,139.23,139.21,0.05015176]
[1763387110432,0.04928759,139.23,139.21,3.29015176]
[1763387110630,0.04928759,139.23,139.21,0.05015176]
[1763387112017,0.04928759,139.23,139.21,3.29015176]
[1763387113831,4.93557488,139.3,139.21,3.29015176]
[1763387114028,17.63801882,139.32,139.21,3.24]
[1763387114234,4.93557488,139.31,139.21,3.24]
[1763387114537,26.48557488,139.32,139.21,3.24]
[1763387114731,4.93557488,139.31,139.21,3.24]
[1763387114929,0.05029181,139.28,139.26,3.24]
[1763387115136,0.04733687,139.28,139.26,3.28719755]
[1763387116730,4.93557488,139.34,139.26,3.28719755]
[1763387116929,4.93557488,139.35,139.26,3.28719755]
[1763387117130,17.75450623,139.38,139.26,3.24]
[1763387117331,4.93993737,139.37,139.26,3.24]
[1763387117635,0.05100071,139.33,139.3,0.04689195]
[1763387117831,0.05100071,139.33,139.31,3.34]
[1763387118029,0.00100071,139.33,139.31,3.34]
[1763387119035,0.00100071,139.33,139.3,0.04689195]
[1763387119222,0.00100071,139.33,139.3,3.38689195]
[1763387120330,0.00100071,139.33,139.3,0.04689195]
[1763387121138,24.73499819,139.32,139.22,3.34]
[1763387121328,10.48042933,139.31,139.22,3.34]
[1763387121634,5.54049196,139.3,139.22,3.34]
[1763387121821,5.54049196,139.29,139.22,3.34]
[1763387122026,0.04666206,139.27,139.24,0.05046993]
[1763387122228,10.59255425,139.26,139.18,3.34]
[1763387122426,5.54049196,139.25,139.18,3.34]
[1763387122639,5.54049196,139.24,139.1,3.34]
[1763387122830,5.54049196,139.23,139.1,3.34]
[1763387123036,5.54049196,139.22,139.1,3.34]
[1763387123234,0.05273499,139.17,139.15,0.05116086]
[1763387123435,5.54049196,139.16,139.15,0.05116086]
[1763387124839,6.98049196,139.16,139.06,3.34]
[1763387125140,5.1018703,139.17,139.06,3.34]
[1763387125141,5.54049196,139.15,139.06,3.34]
[1763387125341,5.54049196,139.14,139.06,3.34]
[1763387125535,5.54049196,139.13,138.98,81.18]
[1763387125735,0.04699688,139.07,139.05,3.34]